Cogmind - Beta 13 X1 @@@ ROGUE MODE // 2023.08.16 @ 01:57:20 // AFD2020/Player2 Player: cptwinky Result: Core destroyed Performance ------------- Evolutions (2) 1000 Regions Visited (5) 1000 Robots Destroyed (73) 365 Value Destroyed (2628) 2628 Prototype IDs (15) 300 Alien Tech Used (0) 0 Bonus (541) 541 TOTAL SCORE: 5834 Bonus ------- High Alert Combat Kills 287 Follower Combat Kills 912 Entered Garrisons 200 Friendly Fire -858 Cogmind --------- Core Integrity 0/550 Matter 290/300 Energy 140/140 System Corruption 0% Temperature Cool (0) Movement Treading (246) Ox1 Location -8/Materials Parts ------- > --- POWER (1) -------- Light Deuterium Engine > --- PROPULSION (3) --- Light Treads Armored Treads Armored Treads > --- UTILITY (5) ------ High-capacity Storage Unit Improved Targeting Computer Core Analyzer Transmission Jammer Hardened Medium Armor Plating > --- WEAPON (2) ------- Assault Cannon Assault Cannon > --- INVENTORY (20) --- Makeshift Power Source Armored Treads Improved VTOL Module Flightbrick Improved Sensor Array Improved Signal Interpreter Hardened Medium Armor Plating Component Analysis Suite Makeshift System Restoration Module Subdweller Beam Cannon Enhanced Autogun Assault Cannon Improved Grenade Launcher Improved Grenade Launcher Improved Datajack Multitool Great Maul Peak State ------------ > --- POWER ------------ Light Deuterium Engine > --- PROPULSION ------- Light Treads Armored Treads Armored Treads > --- UTILITY ---------- High-capacity Storage Unit Improved Targeting Computer Core Analyzer Transmission Jammer Hardened Medium Armor Plating > --- WEAPON ----------- Assault Cannon Assault Cannon > --- INVENTORY -------- Makeshift Power Source Armored Treads Improved VTOL Module Flightbrick Improved Sensor Array Improved Signal Interpreter Light Armor Plating Component Analysis Suite Makeshift System Restoration Module Subdweller Beam Cannon Enhanced Autogun Assault Cannon Improved Grenade Launcher Improved Grenade Launcher Improved Datajack Multitool Great Maul [Rating: 38] Favorites ----------- Power Ion Engine Engine Ion Engine Propulsion Light Treads Treads Light Treads Leg Aluminum Leg Wheel Compact Wheel Utility Scrap Shield Device Transmission Jammer Storage High-capacity Storage Unit Processor Improved Targeting Computer Protection Scrap Shield Weapon Assault Cannon Energy Gun Small Laser Energy Cannon Subdweller Beam Cannon Ballistic Gun Subdweller Machine Gun Ballistic Cannon Assault Cannon Launcher Improved Grenade Launcher Special Weapon Multitool Piercing Weapon Makeshift Spear Special Melee Weapon Improved Datajack Build | -11 -10 -10 -8 -8 -8 ------- Run | Jun Mat Sub Mat Gar Mat Slots Evolved 4 | . . . 4 . . Power . | . . . . . . Propulsion 1 | . . . 1 . . Utility 3 | . . . 3 . . Weapon . | . . . . . . Parts Attached 69 | 2 1 22 37 7 . Power 1 | . . . 1 . . Engine 1 | . . . 1 . . Core . | . . . . . . Reactor . | . . . . . . Propulsion 13 | 2 . 1 10 . . Treads 12 | 2 . . 10 . . Leg . | . . . . . . Wheel 1 | . . 1 . . . Hover . | . . . . . . Flight . | . . . . . . Utility 19 | . . 8 11 . . Device 3 | . . 1 2 . . Storage 4 | . . 2 2 . . Processor 2 | . . . 2 . . Hackware . | . . . . . . Protection 10 | . . 5 5 . . Artifact . | . . . . . . Weapon 36 | . 1 13 15 7 . Energy Gun . | . . . . . . Energy Cannon 6 | . . 3 3 . . Ballistic Gun 5 | . . 3 2 . . Ballistic Cannon 13 | . 1 1 7 4 . Launcher 6 | . . 2 1 3 . Special Weapon 1 | . . . 1 . . Impact Weapon . | . . . . . . Slashing Weapon . | . . . . . . Piercing Weapon 4 | . . 4 . . . Special Melee Weapon 1 | . . . 1 . . Unidentified Prototypes 1 | . . 1 . . . Parts Lost 4 | . . . 4 . . Power . | . . . . . . Propulsion 1 | . . . 1 . . Utility 3 | . . . 3 . . Weapon . | . . . . . . Highest Loss Streak 4 | . . . 4 . . To Critical Strikes . | . . . . . . Average Slot Usage (%) 90 | . 85 93 82 100 100 Engine 11 | . 14 14 9 9 9 Treads 25 | . 28 24 26 27 27 Wheel 1 | . . 3 . . . Device 4 | . . 5 1 9 9 Storage 6 | . 14 2 9 9 9 Processor 3 | . . . 1 18 18 Protection 13 | . . 13 16 9 9 Energy Cannon 1 | . . 2 1 . . Ballistic Gun 7 | . 14 12 3 . . Ballistic Cannon 9 | . 4 4 13 17 18 Piercing Weapon 3 | . . 7 . . . Naked Turns . | . . . . . . Heaviest Build 94 | 12 14 61 94 65 64 Greatest Support 60 | 40 40 40 60 60 60 Greatest Overweight (x) 3 | . . 3 2 1 1 Average Overweight (x) . | . . . . 1 1 Largest Inventory Capacity 20 | 8 8 20 20 20 20 Average Capacity 13 | 8 8 7 20 20 20 Most Carried 20 | 6 5 20 20 20 20 Average Carried 13 | 6 3 6 19 20 19 Final Capacity 20 | 8 8 20 20 20 20 Final Carried 20 | 6 5 20 20 20 20 Class Distribution -------------------- 59% | Mutant 38% | Subdweller-Mutant Dominant Class ---------------- Mutant | -10/Materials Mutant | -10/Subcaves Subdweller-Mutant | -8/Materials Mutant | -8/Garrison Mutant | -8/Materials Resources | -11 -10 -10 -8 -8 -8 ----------- Run | Jun Mat Sub Mat Gar Mat Matter Collected 2054 | 220 31 570 650 503 80 Remotely . | . . . . . . Salvage Created 2429 | . 153 575 1053 426 222 Parts 171 | . 3 43 68 43 14 Haulers Intercepted 4 | . 1 . 3 . . Recyclers Shooed 3 | . 1 . 2 . . Parts Field Recycled . | . . . . . . Retrieved Matter . | . . . . . . Parts Self-Destructed 11 | . . 11 . . . Prevented . | . . . . . . Kills | -11 -10 -10 -8 -8 -8 ------- Run | Jun Mat Sub Mat Gar Mat Combat Hostiles Destroyed 58 | . 2 14 21 17 4 Guns 13 | . 2 4 7 . . Cannons 29 | . . 5 10 10 4 AOE 16 | . . 5 4 7 . Classes Destroyed 17 | . 3 5 8 . 1 Worker 1 | . . . 1 . . Builder 3 | . . . 3 . . Hauler 4 | . 1 . 3 . . Recycler 1 | . . . 1 . . Operator 1 | . 1 . . . . Watcher 3 | . . . 2 . 1 Swarmer 10 | . . 3 1 6 . Cutter 3 | . . . 3 . . Grunt 18 | . 2 . 7 9 . Duelist 2 | . . . 1 1 . Sentry 12 | . . . 8 1 3 Hunter 1 | . . . . . 1 Heavy 1 | . . . 1 . . Artisan 2 | . . 2 . . . Cobbler 1 | . . 1 . . . Subdweller 11 | . . 11 . . . Zionite 2 | . . 2 . . . Best Kill Streak 5 | . 3 3 5 4 1 Combat Bots Only 5 | . 2 3 5 4 1 Max Kills in Single Turn 4 | . 1 3 2 4 1 Gunslinging 1 | . . . 1 . . Exploded 4 | . . 3 2 4 . Melee . | . . . . . . Uniques/NPCs Destroyed . | . . . . . . Combat | -11 -10 -10 -8 -8 -8 -------- Run | Jun Mat Sub Mat Gar Mat Damage Taken 2162 | . 7 500 1150 436 69 Core 234 | . . 70 35 129 . Absorbed by Shields 21 | . . . 16 5 . Regen/Repaired (Parts) 384 | . . . 384 . . Core Remaining (%) 69 | 100 . 38 . . . Volleys Fired 228 | . 18 80 88 33 9 Largest 2 | . 2 2 2 2 2 Hottest 124 | . 60 115 124 88 88 Shots Fired 366 | . 26 108 149 65 18 Gun 114 | . 24 31 59 . . Cannon 238 | . 2 74 85 59 18 Launcher 11 | . . 3 2 6 . Special 3 | . . . 3 . . Kinetic 305 | . 20 91 117 59 18 Thermal 53 | . 6 17 30 . . Explosive 8 | . . . 2 6 . Electromagnetic . | . . . . . . Robot Hit Streak 9 | . 6 9 9 6 5 Robot Miss Streak 6 | . 2 3 6 3 4 Penetration Max . | . . . . . . Secondary Targets 1 | . . . 1 . . Max Gunslinging Chain 1 | . . . 1 . . Shots Hit Robots 201 | . 21 54 85 32 9 Core Hits 104 | . 6 24 43 27 4 Critical Kills 1 | . . . 1 . . Critical Parts Destroyed . | . . . . . . Critical Strikes 5 | . . 3 1 1 . Destroy 3 | . . 2 1 . . Blast 1 | . . . . 1 . Impale 1 | . . 1 . . . Melee Attacks 48 | . . 48 . . . Impact . | . . . . . . Slashing . | . . . . . . Piercing 48 | . . 48 . . . Sneak Attacks 9 | . . 9 . . . Combat Hostiles . | . . . . . . Follow-up Attacks . | . . . . . . Damage Inflicted 6271 | . 218 1776 2538 1473 266 Guns 1402 | . 179 399 824 . . Cannons 2828 | . 37 500 1277 748 266 Explosions 1376 | . . 300 351 725 . Melee 577 | . . 577 . . . Ramming 88 | . 2 . 86 . . Kinetic 3763 | . 172 947 1630 748 266 Thermal 995 | . 44 252 699 . . Explosive 848 | . . . 123 725 . Electromagnetic . | . . . . . . Impact . | . . . . . . Slashing . | . . . . . . Piercing 577 | . . 577 . . . Highest Corruption . | . . . . . . Average Corruption . | . . . . . . Corruption Purged . | . . . . . . Corruption Blocked . | . . . . . . Overload Shots . | . . . . . . Overflow Damage 229 | . . 83 121 15 10 Projectiles 18 | . . . 8 . 10 Explosions 132 | . . 4 113 15 . Melee 79 | . . 79 . . . Knockbacks 7 | . . 1 1 4 1 Impact 1 | . . . 1 . . Kinetic 6 | . . 1 . 4 1 Secondary . | . . . . . . Self-Inflicted Damage 71 | . . . 71 . . Shots 2 | . . . 2 . . Rammed 9 | . 1 . 8 . . Targets Rammed 11 | . 1 . 10 . . Kicked . | . . . . . . Crushed 2 | . . . 2 . . Highest Temperature 240 | . 40 10 240 225 63 Average Temperature 56 | . 16 7 78 49 26 Received Heat Transfer 465 | . . 63 180 186 36 Effects 1 | . . . 1 . . Interference 1 | . . . 1 . . Siege Activations . | . . . . . . Robots Corrupted . | . . . . . . Combat Hostiles . | . . . . . . Parts Fried . | . . . . . . Impact Corruptions . | . . . . . . Robots Melted . | . . . . . . Combat Hostiles . | . . . . . . Parts Melted . | . . . . . . Heat Transferred 1134 | . 100 305 729 . . Parts Sabotaged . | . . . . . . Parts Stolen . | . . . . . . Parts Stripped . | . . . . . . Power Chain Reactions . | . . . . . . Missiles Intercepted . | . . . . . . Alert | -11 -10 -10 -8 -8 -8 ------- Run | Jun Mat Sub Mat Gar Mat Peak Influence 1214 | . 91 . 309 1214 907 Initial 581 | . . . . 200 581 Average 330 | . 73 . 160 772 778 Maximum Alert Level 4 | . . . 1 4 3 Low Security (%) 35 | 100 100 . 46 . . Level 1 38 | . . . 53 12 . Level 2 5 | . . . . 20 14 Level 3 17 | . . . . 53 85 Level 4 2 | . . . . 13 . Level 5 . | . . . . . . High Security . | . . . . . . Max Security . | . . . . . . Squads Dispatched 9 | . . . 7 . 2 Investigation 3 | . . . 3 . . Extermination . | . . . . . . Reinforcement 4 | . . . 3 . 1 Assault 1 | . . . . . 1 Garrison 1 | . . . 1 . . Intercept . | . . . . . . Searches Triggered . | . . . . . . Construction Impeded 1 | . . . . . 1 Haulers Reinforced . | . . . . . . Active Scanning Responses . | . . . . . . Cargo Convoy Interrupts . | . . . . . . Stealth | -11 -10 -10 -8 -8 -8 --------- Run | Jun Mat Sub Mat Gar Mat Distress Signals 3 | . . . 3 . . Communications Jammed 5 | . . . 1 . 4 Distress Signals 4 | . . . . . 4 Times Spotted 110 | . 3 23 48 24 12 Peak Tracking Total 9 | . 2 3 9 5 5 Tactical Retreats 4 | . . . 2 2 . Traps | -11 -10 -10 -8 -8 -8 ------- Run | Jun Mat Sub Mat Gar Mat Traps Triggered 8 | . . 1 1 6 . Indirectly . | . . . . . . Trap Hack Attempts 5 | . . . 5 . . Triggered . | . . . . . . Disarmed . | . . . . . . Reprogrammed 1 | . . . 1 . . Reused . | . . . . . . Traps Extracted . | . . . . . . Installed 2 | . . . 2 . . Triggered 1 | . . 1 . . . Most Traps Carried 2 | . . 2 2 . . Machines | -11 -10 -10 -8 -8 -8 ---------- Run | Jun Mat Sub Mat Gar Mat Machines Disabled 15 | . . 1 5 2 7 Max in Single Turn 2 | . . 1 2 1 1 Garrison Relay 1 | . . . . 1 . Machines Repaired . | . . . . . . Machines Sabotaged . | . . . . . . Overloaded Fab Kills . | . . . . . . Hacking | -11 -10 -10 -8 -8 -8 --------- Run | Jun Mat Sub Mat Gar Mat Machines Accessed 25 | . 2 2 13 3 5 Terminals 16 | . 1 . 8 3 4 Fabricators . | . . . . . . Repair Stations 2 | . . . 1 . 1 Recycling Units 3 | . 1 . 2 . . Scanalyzers 1 | . . . 1 . . Garrison Access 1 | . . . 1 . . Total Hacks 81 | . 7 5 56 6 7 Successful 36 | . 1 5 29 . 1 Failed 45 | . 6 . 27 6 6 Catastrophic 7 | . . . 3 1 3 Database Lockouts . | . . . . . . Manual 29 | . 4 . 21 . 4 Terminals 47 | . 4 . 32 6 5 Fabricators . | . . . . . . Repair Stations 10 | . . . 8 . 2 Recycling Units 10 | . 3 . 7 . . Scanalyzers 5 | . . . 5 . . Garrison Access 4 | . . . 4 . . Terminal Hacks 14 | . . 5 9 . . Record 4 | . . 4 . . . Prototype ID Bank 1 | . . . 1 . . Branch Access Points 1 | . . . 1 . . Alert Level 1 | . . . 1 . . Unreport Threat 3 | . . . 3 . . Locate Traps 1 | . . . 1 . . Zone Layout 2 | . . . 2 . . Derelict Proto ID Bank 1 | . . 1 . . . Fabricator Hacks . | . . . . . . Repair Station Hacks 7 | . . . 6 . 1 Scan Component 4 | . . . 3 . 1 Repair 3 | . . . 3 . . Recycling Unit Hacks 4 | . 1 . 3 . . Process 1 | . . . 1 . . Retrieve Matter 1 | . . . 1 . . Retrieve Components 2 | . 1 . 1 . . Scanalyzer 5 | . . . 5 . . Insert Component 3 | . . . 3 . . Analyze 2 | . . . 2 . . Garrison Access Hacks 1 | . . . 1 . . Unlock Access 1 | . . . 1 . . Unauthorized Hacks 5 | . . . 5 . . Terminals 2 | . . . 2 . . Botnet 1 | . . . 1 . . Disrupt 1 | . . . 1 . . Fabricators . | . . . . . . Repair Stations . | . . . . . . Recycling Units 2 | . . . 2 . . Reject 2 | . . . 2 . . Scanalyzers . | . . . . . . Garrison Access 1 | . . . 1 . . Reprogram 1 | . . . 1 . . Data Cores Recovered 2 | . 1 . 1 . . Used . | . . . . . . Hacking Detections 22 | . 2 . 12 3 5 Full Trace Events 4 | . . . 3 1 . Feedback Events . | . . . . . . Feedback Blocked . | . . . . . . Robot Schematics Acquired . | . . . . . . Robots Built . | . . . . . . Authchips . | . . . . . . Time . | . . . . . . Total Robot Build Rating . | . . . . . . Part Schematics Acquired 2 | . . . 2 . . Parts Built . | . . . . . . Authchips . | . . . . . . Time . | . . . . . . Total Part Build Rating . | . . . . . . Parts Repaired 3 | . . . 3 . . Time 102 | . . . 102 . . Parts Recycled . | . . . . . . Recycled Matter 239 | . . . 239 . . Retrieved Matter 473 | . . . 473 . . Retrieved Components 3 | . 2 . 1 . . Parts Scanalyzed 2 | . . . 2 . . Part Schematics Acquired 2 | . . . 2 . . Parts Damaged . | . . . . . . Bothacking | -11 -10 -10 -8 -8 -8 ------------ Run | Jun Mat Sub Mat Gar Mat Used RIF Installer . | . . . . . . Robots Hacked . | . . . . . . Non-combat . | . . . . . . Combat . | . . . . . . Robot Hacks Applied . | . . . . . . Relay Couplers Released 5 | . . . . 5 . Machine Destruction 5 | . . . . 5 . Fabnet Peak Effective % . | . . . . . . Robots Rewired . | . . . . . . Allies Hacked . | . . . . . . Hacks Repelled . | . . . . . . Allies | -11 -10 -10 -8 -8 -8 -------- Run | Jun Mat Sub Mat Gar Mat Total Allies 10 | . 1 8 1 . . Largest Group 7 | . 1 7 7 2 1 Highest-Rated Group 191 | . 56 185 191 98 84 Highest-Rated Ally 84 | . 56 68 84 84 84 Total Orders . | . . . . . . Ally Attacks 210 | . 19 39 93 40 19 Total Damage 4747 | . 117 977 2595 627 431 Kills 49 | . . 9 28 10 2 Allies Corrupted . | . . . . . . Allies Melted . | . . . . . . Intel | -11 -10 -10 -8 -8 -8 ------- Run | Jun Mat Sub Mat Gar Mat Robot Analysis Total . | . . . . . . Derelict Logs Recovered 1 | . . 1 . . . Drone Launches . | . . . . . . Drone Recoveries . | . . . . . . Exploration | -11 -10 -10 -8 -8 -8 ------------- Run | Jun Mat Sub Mat Gar Mat Turns Passed 13516 | 5 370 6524 4631 1469 517 Spaces Moved 5981 | 2 185 3498 1575 534 187 Core . | . . . . . . Treads 4861 | 1 185 2379 1575 534 187 Legs 1 | 1 . . . . . Wheels 1119 | . . 1119 . . . Hover . | . . . . . . Flight . | . . . . . . Fastest Speed 100 | 120 160 100 163 246 246 Average Speed 187 | 140 160 150 243 246 246 Slowest Speed 340 | 160 160 160 340 246 246 Overloaded Moves . | . . . . . . Propulsion Burnouts . | . . . . . . Robots Hopped . | . . . . . . Cave-ins Triggered . | . . . . . . Exploration Rate (%) 49 | 2 33 95 90 57 22 Regions Visited 5 Branch Regions 1 Pre-discovered Areas 1 | . . 1 . . . Known Exits Taken 1 | . . . 1 . . Unknown Exits Taken 3 | 1 1 1 . . . Scrap Searched 2 | . . 2 . . . Spaces Dug 34 | . . 25 9 . . Terrain Destroyed 127 | . . 54 61 11 1 Melee 6 | . . 6 . . . Projectile 24 | . . . 23 . 1 AOE 97 | . . 48 38 11 . Terrain Rammed . | . . . . . . Walls Destroyed . | . . . . . . Machines Disabled . | . . . . . . Actions | -11 -10 -10 -8 -8 -8 --------- Run | Jun Mat Sub Mat Gar Mat Total 7880 | 3 238 4587 2203 622 227 Wait 1396 | . 27 869 432 39 29 Move 5977 | 1 184 3497 1575 533 187 Hop . | . . . . . . Pick Up 66 | . 2 40 23 . 1 Fast Attach 24 | . 1 9 14 . . Attach 10 | . . 3 7 . . Detach 7 | . 1 3 3 . . Swap 35 | 2 . 10 16 7 . Drop 52 | . 4 21 26 . 1 Fire 228 | . 18 80 88 33 9 Melee 48 | . . 48 . . . Ram . | . . . . . . Kick . | . . . . . . Crush 11 | . 1 . 10 . . Escape Stasis 10 | . . . . 10 . Rewire . | . . . . . . Trap 7 | . . . 7 . . Miscellaneous 9 | . . 7 2 . . Route ------- -11/Junkyard -10/Materials (discovered 2 exits: [*Mat] / *Sub) -10/Subcaves (discovered 2 exits: *Mat x2) -8/Materials (discovered 4 exits: [*Fac x3] / Gar) -8/Garrison (discovered 3 exits: *Mat x3) -8/Materials History --------- Turn | Location | Event 1 | -11/Junkyard | Discovered new exit (range 1) 6 | -11/Junkyard | Entered Materials 242 | -10/Materials | Discovered new exit (range 5) 317 | -10/Materials | Build established: Mutant 358 | -10/Materials | Discovered new exit (range 10) 376 | -10/Materials | Entered Subcaves 726 | -10/Subcaves | Shifting Twisted Machinery released Sub. Machine Gun 726 | -10/Subcaves | Shifting Twisted Machinery released Sub. Power Source 973 | -10/Subcaves | Visited 4L-MR0's lab 1822 | -10/Subcaves | A swath of the cavern ceiling suddenly collapsed 2148 | -10/Subcaves | Ambushed by Subdwellers from Twisted Machinery 2160 | -10/Subcaves | Discovered new exit (range 12) 2454 | -10/Subcaves | Disturbed a concealed Subdweller 2482 | -10/Subcaves | Disturbed a concealed Subdweller 2482 | -10/Subcaves | Disturbed a concealed Subdweller 2808 | -10/Subcaves | Build established: Subdweller-Mutant 2942 | -10/Subcaves | Visited triangular shrine 3218 | -10/Subcaves | Found Prototype Device 3218 | -10/Subcaves | Identified V3-11A's Pendant 3223 | -10/Subcaves | Befriended Subdweller 3259 | -10/Subcaves | Shifting Twisted Machinery released Sub. Power Source 3308 | -10/Subcaves | Shifting Twisted Machinery released Battle Rifle 3406 | -10/Subcaves | Build established: Mutant 3993 | -10/Subcaves | Befriended Subdweller 4104 | -10/Subcaves | Learned location of Zion (-6) 4104 | -10/Subcaves | Met a Zionite searching for "candidates" 4248 | -10/Subcaves | Befriended Subdweller 4308 | -10/Subcaves | Befriended Subdweller 4493 | -10/Subcaves | Discovered new exit (range 14) 4523 | -10/Subcaves | Shifting Twisted Machinery released Spk. Treads 4530 | -10/Subcaves | Shifting Twisted Machinery released Sub. Power Source 4780 | -10/Subcaves | A Subdweller sparked back to life 4780 | -10/Subcaves | A Subdweller sparked back to life 4780 | -10/Subcaves | A Subdweller sparked back to life 4782 | -10/Subcaves | Core integrity fell below 50% 4783 | -10/Subcaves | Befriended Subdweller 4783 | -10/Subcaves | Befriended Subdweller 4783 | -10/Subcaves | Befriended Subdweller 4832 | -10/Subcaves | A swath of the cavern ceiling suddenly collapsed 5253 | -10/Subcaves | Befriended Subdweller 5700 | -10/Subcaves | Found Power Bank 6234 | -10/Subcaves | Visited Clippyterm 6474 | -10/Subcaves | Build established: Subdweller-Mutant 6900 | -10/Subcaves | Entered Materials 6900 | -8/Materials | Accompanied by 6 allies 6900 | -8/Materials | Evolved 4 slots: Propulsion x1, Utility x3 7333 | -8/Materials | Found Flightbrick 8398 | -8/Materials | Repaired Arm. Treads 9189 | -8/Materials | Discovered new exit (range 4) 9611 | -8/Materials | Discovered new exit (range 3) 10776 | -8/Materials | Discovered new exit (range 12) 10833 | -8/Materials | Lost 4 parts (1n3u) 11080 | -8/Materials | Build established: Scavenger-Mutant 11196 | -8/Materials | Repaired Assault Cannon 11223 | -8/Materials | Repaired Lgt. Treads 11400 | -8/Materials | Build established: Mutant 11523 | -8/Materials | Identified exit to Garrison 11531 | -8/Materials | Entered Garrison 11531 | -8/Garrison | Accompanied by 1 ally 11564 | -8/Garrison | Core integrity fell below 50% 11634 | -8/Garrison | Triggered checkpoint 11719 | -8/Garrison | Garrison Relay disabled 11847 | -8/Garrison | Triggered checkpoint 11881 | -8/Garrison | Triggered checkpoint 12138 | -8/Garrison | Discovered new exit (range 11) 12322 | -8/Garrison | Triggered checkpoint 12366 | -8/Garrison | Triggered checkpoint 12420 | -8/Garrison | Triggered checkpoint 12495 | -8/Garrison | Discovered new exit (range 15) 12792 | -8/Garrison | Triggered checkpoint 12875 | -8/Garrison | Core integrity fell below 20% 12968 | -8/Garrison | Discovered new exit (range 12) 13000 | -8/Garrison | Entered Materials 13400 | -8/Materials | First assault squad dispatched 13517 | -8/Materials | Core destroyed Last Messages --------------- 13295_ Player 2 attaches Hrd. Medium Armor Plating. 13298_ Dropped Lgt. Armor Plating. 13301_ Acquired Hrd. Medium Armor Plating. 13321_ R-06 Scavenger collects Imp. Ion Engine. 13322_ Acquired 48 matter. 13324_ R-06 Scavenger collects Lgt. Treads. 13324_ Acquired 2 matter. 13326_ Acquired 5 matter. 13328_ R-06 Scavenger collects Lgt. Treads. 13378_ Y-45 Defender destroyed. 13381_ Acquired 15 matter. 13396_ Connecting with Terminal... 13400_ ALERT: Significant disruption in Zone 2E, assault force dispatched. 13448_ Y-45 Defender destroyed. 13458_ Connecting with Terminal... 13467_ K-01 Serf collects debris. 13481_ Connecting with Terminal... 13514_ K-01 Serf collects debris. 13515_ G-47 Trooper unfolds itself. 13515_ I-25 Savior distress signal jammed. Map ----- +----------------------------------------------------+ | ????# %" " + ############ ???????? | | ????# "R" # ## ???????? | | ???# ] """ # ## ???????? | | ???######### ## ???????? | | ???#!= = ] # ############+#### # ???????? | | ???#!== + #??#####??? ???## ????????? | | ???#! = ! # #? #???== ??? ?????????? | | ???# = !# #? """ #?? = ??? ?????????? | | ???#! # # """ #?? ??? ?????????? | | ???######### # """ #? ??? ??????????? | | ##########?# + #? """ #??? ???????????? | | #! #?# # [ ## """ #?????????????????? | | # /[! ### ######### """ #?????????????????? | | # /[! # #?????# ? #?????????????????? | | # /[! # #?????##???#####?????????????????? | | # + #????????????????????????????????? | | # # ! #????????????????????????????????? | | # ! # #????????????????????????????????? | | # ## ##????????????????????????????????? | | # ## #?????????######??????????????????? | | ########### #????????##!!!!???????????????????? | | ??????????# #????????#! ????????????????????? | | ??????????# #????????# ?????????????????????? | | ??????????# #????????# #?????????????????????? | | ???##?????# ########## #?????????????????????? | | ??## ####?# ## T #@g##########????????????? | | ?? #?# ## /@gbg = #???????????? | | ? """"" #?# ## ] # # Ti ! #???????????? | | # """"" ### ########## # #???????????? | | # """"" #% # +???????????? | | # [#! ########+##???????????? | | # """""!+% ##+#########+####????????????????????? | | # """""!#= # ????# =#????????????????????? | | # """"" # # """ ??# #????????????????????? | | # #### """ ##]! ""#????????????????????? | | # ""T"" #??# """ ##]! T"#????????????????????? | | # """"" #??# ##][ ""#????????????????????? | | #########??# ##!%* #????????????????????? | | ???????????# """ ###%#####????????????????????? | | ???????????# ""??? #?#"?????????????????????????? | | ???????????# ????????##?????????????????????????? | | ???????????# ???????????????????????????????????? | | ???????????# ???????????????????????????????????? | | ????????????????????????????????????????????????? | | ????????????????????????????????????????????????? | | ????????????????????????????????????????????????? | | ????????????????????????????????????????????????? | | | | | | | +----------------------------------------------------+ Best States ------------- Heat Dissipation 31 Energy Generation 14 Energy Capacity 250 Matter Stores 300 Matter Capacity 300 Sight Range 16 Terrain Scan Density 10 Jamming Range 12 Armor Coverage 1600 Evasion (%) 40 Targeting Accuracy 6 Core Analysis 6 Recoil Reduction 3 Item Schematics ----------------- Imp. VTOL Module | -8/Materials | Scanalyzed Arm. Treads | -8/Materials | Scanalyzed Robot Schematics ------------------ None Fabricated ------------ Nothing Alien Tech Used ----------------- None Achievements -------------- None Challenges ------------ None Player 2 | -11 -10 -10 -8 -8 -8 ---------- Run | Jun Mat Sub Mat Gar Mat Slots Evolved 4 | . . 4 . . . Power 1 | . . 1 . . . Propulsion 1 | . . 1 . . . Utility 2 | . . 2 . . . Weapon . | . . . . . . Parts Attached 77 | . 7 24 37 2 7 Parts Lost 21 | . . 4 15 2 . Damage Taken 2879 | . 148 623 1592 373 143 Core 476 | . 18 65 235 106 52 Player 2/Cogmind (%) 67 | . 100 48 87 45 100 Absorbed by Shields . | . . . . . . Damage Inflicted 4084 | . 117 829 2190 517 431 Player 2/Cogmind (%) 39 | . 34 31 46 25 61 Combat Hostiles Destroyed 31 | . . 7 15 8 1 Player 2/Cogmind (%) 34 | . . 33 41 32 20 Game ------ Seed CoilSystemStick Manual? 0 Play Time 00:58:55 Cumulative 1399.5 hours Start 2023.08.15 @ 02:53:46 End 2023.08.16 @ 01:57:20 Sessions 4 Manual Loads 0 Difficulty Rogue Special Mode AFD2020/Player2 Game No. 991 Rogue 987 Adventurer 4 Explorer 0 Win Type - Total 165 Types 123/11/10/7/2/1/1/6/4 Lore% 96 Gallery% 98 Achievement% 98 Wizard Run 0 Options --------- ASCII 0 Keyboard 1 Movement Vi Keybinds 0 Fullscreen 0 Font 20/X11 Map View 76x50 Tactical HUD 1 Map Filters NONE Filters NONE Steam 1 RUN: e1756f41-0062-41b3-bfa5-830e1f5cb4e6